bitfinex/quotes_ETHUSD_20241018
["timestamp","ask_amount","ask_price","bid_price","bid_amount"]
[1729236783813,1.269157,2635.1,2634.6,3.79562]
[1729236783953,0.5063927,2635.0,2634.7,3.79549]
[1729236784996,0.5063927,2635.0,2633.8,3.86264132]
[1729236784997,3.70172282,2634.8,2634.0,1.54084114]
[1729236785152,3.70172282,2634.8,2633.7,3.79685]
[1729236785153,0.8021,2634.2,2633.7,3.79685]
[1729236785358,0.459825,2634.1,2633.7,3.79685]
[1729236785756,0.459825,2634.1,2633.8,3.79671]
[1729236786352,0.8021,2634.2,2633.8,3.79671]
[1729236786555,0.8021,2634.2,2633.4,4.45482282]
[1729236786556,0.8021,2634.2,2633.7,3.79693]
[1729236786901,0.8021,2634.2,2634.0,7.59286]
[1729236787192,0.8021,2634.2,2634.0,3.79643]
[1729236787555,0.8021,2634.2,2634.1,3.79636]
[1729236787754,0.8021,2634.2,2634.0,3.79643]
[1729236787990,0.8021,2634.2,2634.0,7.59284]
[1729236788396,0.8021,2634.2,2634.1,3.79636]
[1729236788762,0.7606,2634.5,2634.2,3.79616]
[1729236788965,1.516218,2634.5,2634.2,3.79616]
[1729236789195,1.516218,2634.5,2634.1,3.79636]
[1729236789855,1.516218,2634.5,2634.2,3.79619]
[1729236790291,1.516218,2634.5,2634.3,7.59204]
[1729236790292,0.7606,2634.5,2634.3,7.59204]
[1729236790501,7.35,2634.8,2634.5,3.79577]
[1729236790502,0.8228,2634.8,2634.5,3.79577]
[1729236790861,0.8228,2634.8,2634.4,3.79587]
[1729236791970,0.8228,2634.8,2634.5,3.79576]
[1729236792394,0.8228,2634.8,2634.4,3.79592]
[1729236792600,0.8228,2634.8,2634.5,3.79576]
[1729236793781,4.3015127,2635.0,2634.5,7.59145]
[1729236793782,5.0992127,2635.0,2634.5,7.59145]
[1729236794002,1.3040927,2635.0,2634.6,3.79564]
[1729236794203,1.3040927,2635.0,2634.7,3.79548]
[1729236794404,0.7977,2635.0,2634.7,3.79548]
[1729236794821,0.7977,2635.0,2634.7,3.79542]
[1729236795009,0.7977,2635.0,2634.7,7.59083]
[1729236795192,0.7977,2635.0,2634.7,3.79541]
[1729236795391,0.7977,2635.0,2634.7,7.59082]
[1729236795591,0.7977,2635.0,2634.8,3.79534]
[1729236796023,0.7977,2635.0,2634.6,3.79561]
[1729236797665,0.7977,2635.0,2634.7,3.79547]
[1729236798304,0.7977,2635.0,2634.5,3.79568]
[1729236798505,0.8004,2635.4,2634.6,3.70172282]
[1729236798725,0.8004,2635.4,2634.9,3.79521]
[1729236798896,0.8004,2635.4,2634.9,3.79508]
[1729236799098,0.8004,2635.4,2635.0,3.79502]
[1729236799899,0.8004,2635.4,2634.7,0.07590209]
[1729236799900,3.79463,2635.3,2634.7,3.79545]
[1729236800263,3.79463,2635.3,2634.8,3.79533]
[1729236800264,0.7834,2635.2,2634.8,3.79533]
[1729236800398,3.79492,2635.1,2634.6,3.7955]
[1729236800591,0.7834,2635.0,2634.6,3.7955]
[1729236801814,0.7834,2635.0,2634.7,3.79548]
[1729236805623,0.7834,2635.0,2634.6,3.79561]
[1729236805849,5.415839,2635.0,2634.3,3.79607]
[1729236806047,5.415839,2635.0,2634.5,3.79577]
[1729236807154,5.415839,2635.0,2634.3,3.79607]
[1729236807366,0.7954,2634.7,2634.3,3.79607]
[1729236807664,0.7954,2634.7,2634.2,3.79609]
[1729236807870,0.7954,2634.7,2634.3,3.79598]
[1729236808164,0.7954,2634.7,2634.4,3.79593]
[1729236808522,0.7954,2634.7,2634.3,3.79598]
[1729236809216,0.7871,2634.6,2634.2,3.79614]
[1729236809627,0.7871,2634.6,2634.3,3.79593]
[1729236810226,11.62742619,2635.7,2634.7,3.79549]
[1729236810473,0.5943861,2636.9,2636.3,3.79318]
[1729236810631,0.5943861,2636.9,2636.7,3.7926]
[1729236810828,3.70172282,2637.7,2636.4,0.07585498]
[1729236810829,3.7912,2637.7,2636.4,0.07585498]
[1729236811176,3.87162282,2638.0,2636.6,3.70172282]
[1729236811177,0.37912,2637.6,2636.6,3.70172282]
[1729236811469,0.1499,2638.0,2637.5,3.79135]
[1729236812360,0.1499,2638.0,2637.4,3.7916]
[1729236812825,0.1499,2638.0,2637.4,3.7816]
[1729236813077,0.1499,2638.0,2637.5,3.79146]
[1729236813367,0.9266,2638.0,2637.5,3.79146]
[1729236813868,0.9266,2638.0,2637.4,3.7816]
[1729236814033,0.9266,2638.0,2637.5,3.79143]
[1729236814369,0.9266,2638.0,2637.4,3.7816]
[1729236814657,0.9266,2638.0,2637.2,3.79179]
[1729236814833,0.9266,2638.0,2637.3,3.79175]
[1729236815433,0.9266,2638.0,2637.1,3.79203]
[1729236815642,3.0,2637.9,2637.1,3.79203]
[1729236817442,1.698307,2638.0,2637.1,3.79203]
[1729236817642,0.9266,2638.0,2637.3,3.79173]
[1729236818156,0.9266,2638.0,2637.5,3.79142]
[1729236818353,0.9266,2638.0,2637.3,3.79164]
[1729236818766,0.9266,2638.0,2637.3,7.58329]
[1729236819143,0.9266,2638.0,2637.3,3.79164]
[1729236819548,0.9266,2638.0,2637.3,7.5833]
[1729236819796,0.9266,2638.0,2637.5,4.30986667]
[1729236824606,3.79109,2637.8,2637.1,3.79196]
[1729236824777,4.71737,2638.0,2637.1,8.10180667]
[1729236824978,3.79092,2637.9,2637.1,8.10180667]
[1729236825461,3.79106,2637.8,2637.1,8.10180667]
[1729236827509,7.58218,2637.8,2637.1,8.10180667]
[1729236827838,3.79106,2637.8,2637.1,8.10180667]
[1729236828606,3.79118,2637.7,2637.1,8.10180667]
[1729236830069,3.79118,2637.7,2637.1,11.89376667]
[1729236830403,3.79118,2637.7,2637.1,8.10180667]
[1729236834439,3.79126,2637.7,2637.1,8.10180667]
[1729236834932,7.58252,2637.7,2637.1,8.10180667]
[1729236835123,3.79126,2637.7,2637.1,11.89376667]
[1729236835331,3.79126,2637.7,2637.2,3.79181]
[1729236835533,3.79126,2637.7,2637.1,8.10180667]
[1729236835534,3.79125,2637.7,2637.1,11.89377667]
[1729236835716,7.58254,2637.7,2637.1,8.10180667]
[1729236836038,3.79125,2637.7,2637.3,3.70316631]
[1729236836736,7.58254,2637.7,2637.3,3.70316631]
[1729236836944,3.79125,2637.7,2637.3,3.70316631]
[1729236837796,3.79132,2637.6,2637.3,3.70316631]
[1729236838000,3.79125,2637.7,2637.3,3.70316631]
[1729236838213,7.58251,2637.7,2637.3,3.70316631]
[1729236839351,0.758251,2637.7,2636.7,0.7628]
[1729236839563,0.758251,2637.7,2636.1,1.19161171]
[1729236839564,3.7929,2636.5,2636.4,3.70316631]
[1729236839719,3.79248,2636.8,2636.4,3.70316631]
[1729236839911,3.79248,2636.8,2636.2,3.7932]
[1729236839912,3.79248,2636.8,2636.6,3.70316631]
[1729236840612,3.79248,2636.8,2636.3,0.07585465]
[1729236840613,7.58508,2636.8,2636.3,3.77902096]
[1729236840930,3.79284,2636.6,2636.1,3.70316631]
[1729236841124,3.79264,2636.7,2636.1,3.70316631]
[1729236841343,7.58535,2636.7,2636.1,7.49656631]
[1729236841824,3.79264,2636.7,2636.2,3.79332]
[1729236842153,3.79251,2636.8,2636.3,3.77902097]
[1729236842315,4.56812,2636.9,2636.3,7.57212097]
[1729236842822,3.79249,2636.8,2636.3,7.57212097]
[1729236843029,4.56812,2636.9,2636.3,7.57212097]
[1729236843260,3.79248,2636.8,2636.3,7.57220097]
[1729236844760,3.79248,2636.8,2636.3,3.77902097]
[1729236844918,3.79263,2636.7,2636.3,3.70316631]
[1729236845258,4.56812,2636.9,2636.3,3.70316631]
[1729236845437,3.79254,2636.8,2636.3,3.70316631]
[1729236845960,3.79254,2636.8,2636.3,7.49633631]
[1729236846616,3.79297,2636.5,2636.0,3.79353]
[1729236847257,0.836066,2636.8,2635.9,0.7913]
[1729236847430,4.628566,2636.8,2635.9,0.7913]
[1729236847634,3.79314,2636.4,2635.9,0.7913]
[1729236847949,3.79334,2636.2,2635.8,3.70316631]
[1729236848254,3.79334,2636.2,2635.6,0.8094]
[1729236848255,3.79366,2636.0,2635.6,0.8094]
[1729236848665,3.79366,2636.0,2635.5,3.79427]
[1729236849015,3.79366,2636.0,2635.6,3.70316631]
[1729236849257,7.58679,2636.2,2635.6,7.49734631]
[1729236849476,3.79349,2636.1,2635.6,7.49734631]
[1729236849757,3.79335,2636.2,2635.7,3.86983226]
[1729236850126,0.8114,2636.3,2635.8,3.79386]
[1729236850471,3.71316631,2637.0,2635.3,8.34231995]
[1729236850472,0.7935,2636.7,2636.0,7.49671631]
[1729236850628,4.5862,2636.7,2636.2,3.79331]
[1729236851135,4.5862,2636.7,2636.1,0.0758617]
[1729236851136,8.37892,2636.7,2636.1,0.0758617]
[1729236851335,4.5862,2636.7,2636.2,3.79332]
[1729236851654,4.5862,2636.7,2636.1,0.0758617]
[1729236851837,4.5862,2636.7,2636.1,3.8692417]
[1729236852044,4.5862,2636.7,2636.1,3.7934]
[1729236853036,8.3789,2636.7,2636.1,3.7934]
[1729236853630,4.5862,2636.7,2636.0,3.79348]
[1729236854182,3.793,2636.5,2635.9,4.55213]
[1729236854741,3.79305,2636.4,2635.9,0.7584]
[1729236855283,3.79285,2636.6,2635.9,0.7584]
[1729236855583,3.79304,2636.5,2635.9,0.7584]
[1729236856580,7.58608,2636.5,2635.9,4.55207]
[1729236856763,7.58608,2636.5,2635.9,5.52936682]
[1729236856943,3.79304,2636.5,2635.9,4.55207]
[1729236857568,3.79315,2636.4,2635.8,7.58766]
[1729236857967,3.79329,2636.3,2635.7,0.78774114]
[1729236858288,4.58525,2636.2,2635.7,3.79402]
[1729236858579,4.58525,2636.2,2635.7,4.77123141]
[1729236858740,0.7919,2636.2,2635.8,3.79391]
[1729236858939,0.7919,2636.2,2635.8,3.86978051]
[1729236859145,0.7919,2636.2,2635.9,3.79374]
[1729236859469,4.55112,2636.4,2635.8,7.58773]
[1729236859791,4.55112,2636.4,2635.8,7.6636005]
[1729236860275,4.55112,2636.4,2635.9,3.79375]
[1729236860776,4.55112,2636.4,2635.8,3.8696905]
[1729236861087,4.55112,2636.4,2635.9,3.79369]
[1729236861257,0.758,2636.4,2635.9,3.79367]
[1729236861452,4.55106,2636.4,2635.9,3.79367]
[1729236861874,4.55106,2636.4,2635.9,7.58736]
[1729236862047,4.55106,2636.4,2635.9,3.79367]
[1729236862742,4.55106,2636.4,2635.8,0.0758705]
[1729236862743,4.55106,2636.4,2635.8,3.79391]
[1729236863048,4.55106,2636.4,2635.7,7.49714631]
[1729236863388,4.55106,2636.4,2635.9,3.79376]
[1729236863880,4.55106,2636.4,2635.9,3.79369]
[1729236864189,0.758,2636.4,2636.0,3.79356]
[1729236869220,4.55116,2636.4,2635.9,3.79372]
[1729236870486,0.758,2636.4,2635.9,3.79372]
[1729236871389,0.758,2636.4,2636.0,3.79361]
[1729236872391,0.758,2636.4,2635.9,3.7937]
[1729236872592,4.5511,2636.4,2635.9,3.7937]
[1729236874293,4.5511,2636.4,2635.8,3.79383]
[1729236874494,0.758,2636.4,2636.0,3.79359]
[1729236875090,4.55109,2636.4,2636.0,3.79359]
[1729236875792,0.758,2636.4,2636.0,7.58718]
[1729236875981,0.758,2636.4,2636.0,3.79359]
[1729236876401,4.55106,2636.4,2636.0,3.79359]
[1729236877193,0.758,2636.4,2636.0,3.79359]
[1729236877423,4.55107,2636.4,2636.0,3.79359]
[1729236877605,4.55107,2636.4,2635.9,3.79376]
[1729236878139,3.79326,2636.3,2635.8,3.79382]
[1729236878621,4.2103882,2636.3,2635.7,3.79405]
[1729236878824,0.7784,2636.2,2635.7,3.79405]
[1729236878991,4.57182,2636.2,2635.7,3.79405]
[1729236879526,3.79356,2636.1,2635.4,3.79449]
[1729236879829,3.79377,2635.9,2635.4,3.79439]
[1729236880024,0.7755,2635.8,2635.4,3.79439]
[1729236880714,0.7755,2635.8,2635.5,3.79433]
[1729236882544,0.7755,2635.8,2635.4,3.79436]
[1729236884150,0.7755,2635.8,2635.3,1.26204644]
[1729236884314,3.79412,2635.7,2635.2,3.79477]
[1729236884521,3.79412,2635.7,2635.1,2.05061126]
[1729236884522,4.58791,2635.6,2635.1,2.05061126]
[1729236884735,3.79449,2635.4,2635.0,0.980507]
[1729236884904,3.79449,2635.4,2634.9,3.79508]
[1729236885307,3.79449,2635.4,2634.9,4.07756175]
[1729236885546,3.79449,2635.4,2634.9,3.79508]
[1729236885700,3.79449,2635.4,2634.9,4.07756175]
[1729236886467,3.79449,2635.4,2634.9,3.79508]
[1729236886941,4.632726,2635.4,2634.9,3.79508]
[1729236887539,0.59420652,2636.9,2635.3,3.70316631]
[1729236887540,0.8043,2635.9,2635.3,3.70316631]
[1729236887746,0.8043,2635.9,2635.7,3.79403]
[1729236887935,0.7891,2636.2,2635.8,0.075875]
[1729236888249,0.7891,2636.2,2636.0,3.79361]
[1729236888455,0.7891,2636.2,2635.9,3.79376]
[1729236888634,0.7891,2636.2,2635.9,3.79368]
[1729236889642,0.7891,2636.2,2636.0,3.7936]
[1729236891153,0.7771,2636.8,2636.1,0.8306]
[1729236891336,0.7771,2636.8,2636.4,3.79294]
[1729236894970,4.5696,2636.8,2636.3,3.79308]
[1729236896060,0.7771,2636.8,2636.4,3.79303]
[1729236898941,4.5696,2636.8,2636.2,3.79322]
[1729236899562,4.5696,2636.8,2636.3,3.79315]
[1729236900128,0.7771,2636.8,2636.4,3.79304]
[1729236900960,0.7771,2636.8,2636.4,3.79296]
[1729236901467,4.56959,2636.8,2636.2,3.7932]
[1729236901667,4.56959,2636.8,2636.3,3.79309]
[1729236902975,0.7771,2636.8,2636.4,3.79296]
[1729236903455,0.7771,2636.8,2636.4,3.79295]
[1729236906382,0.8127,2637.1,2636.6,3.79276]
[1729236906680,0.60416772,2638.0,2637.2,0.7525]
[1729236906681,0.829,2638.0,2637.2,0.7525]
[1729236906894,5.0515034,2638.0,2637.5,3.79146]
[1729236907850,5.0515034,2638.0,2637.3,7.49491631]
[1729236908057,5.0515034,2638.0,2637.3,7.49477631]
[1729236908691,4.6198,2638.0,2637.4,3.79154]
[1729236908900,0.829,2638.0,2637.5,3.79135]
[1729236909197,4.61978,2638.0,2637.5,3.79135]
[1729236909870,0.829,2638.0,2637.6,3.79127]
[1729236910197,0.829,2638.0,2637.5,7.49451631]
[1729236910403,0.829,2638.0,2637.9,3.79089]
[1729236910559,0.8278,2638.3,2637.9,7.49398631]
[1729236910901,3.78983,2638.7,2638.1,7.49366631]
[1729236911656,3.78983,2638.7,2638.1,3.7905]
[1729236911886,3.78983,2638.7,2638.1,7.49366631]
[1729236912059,7.57966,2638.7,2638.1,7.49366631]
[1729236912389,7.57967,2638.7,2638.1,3.7905]
[1729236912589,3.78983,2638.7,2638.1,3.7905]
[1729236912916,3.78989,2638.6,2638.1,3.7905]
[1729236913076,3.78989,2638.6,2637.9,11.28477631]
[1729236913077,4.59496,2638.5,2637.9,11.28477631]
[1729236913396,4.59496,2638.5,2637.9,7.49395631]
[1729236913614,0.8048,2638.5,2638.0,3.79073]
[1729236914280,0.8048,2638.5,2637.9,7.49395631]
[1729236914281,4.5949,2638.5,2637.9,7.49395631]
[1729236914692,0.8048,2638.5,2638.0,3.79069]
[1729236915282,0.8048,2638.5,2638.0,3.86649553]
[1729236915794,0.8048,2638.5,2638.0,0.07580553]
[1729236916105,0.8048,2638.5,2638.1,3.79059]
[1729236916668,0.8048,2638.5,2638.0,3.86655553]
[1729236916868,0.8048,2638.5,2638.0,3.79066]
[1729236917392,0.8048,2638.5,2638.1,3.79059]
[1729236917595,0.8048,2638.5,2638.2,3.79044]
[1729236917798,3.78968,2638.8,2638.4,0.7842]
[1729236917965,0.005,2639.2,2638.8,3.7896]
[1729236918166,0.005,2639.2,2638.9,3.70316631]
[1729236918512,0.005,2639.2,2639.1,3.78917]
[1729236918725,0.005,2639.2,2639.1,7.49233631]
[1729236919083,0.005,2639.2,2639.1,7.56810881]
[1729236919412,0.005,2639.2,2639.1,7.49233631]
[1729236919578,0.005,2639.2,2639.0,3.7893]
[1729236919765,0.005,2639.2,2638.9,7.49261631]
[1729236920214,0.005,2639.2,2639.1,7.49233631]
[1729236920365,0.005,2639.2,2639.1,3.70316631]
[1729236920717,0.005,2639.2,2639.1,7.56810801]
[1729236920871,0.005,2639.2,2639.1,7.49233631]
[1729236922119,0.005,2639.2,2638.7,8.28066631]
[1729236922731,0.005,2639.2,2638.7,4.49096631]
[1729236922887,4.56072,2639.2,2638.7,0.7878]
[1729236923088,3.78918,2639.1,2638.5,4.47446631]
[1729236923594,3.78918,2639.1,2638.5,8.26448631]
[1729236923789,3.78918,2639.1,2638.5,4.47446631]
[1729236924005,0.7716,2639.2,2638.5,3.70316631]
[1729236924185,3.78917,2639.1,2638.5,3.70316631]
[1729236924390,0.7716,2639.2,2638.5,3.70316631]
[1729236924719,3.78953,2638.9,2638.5,3.70316631]
[1729236925025,3.78953,2638.9,2638.3,3.83583243]
[1729236925615,3.78976,2638.7,2638.2,0.757]
[1729236925774,3.78976,2638.7,2638.0,3.79073]
[1729236925775,4.56386,2638.7,2638.0,3.79073]
[1729236925923,4.56386,2638.7,2638.1,3.79057]
[1729236926567,3.78988,2638.6,2637.9,1.60644338]
[1729236926739,3.79011,2638.5,2637.9,1.60644338]
[1729236926940,3.79011,2638.5,2637.9,9.10045969]
[1729236927568,3.78988,2638.6,2637.9,12.89122969]
[1729236927747,3.78988,2638.6,2637.9,9.10041969]
[1729236927953,3.79004,2638.5,2637.9,9.10041969]
[1729236928140,3.79004,2638.5,2638.0,0.07580305]
[1729236928335,3.78988,2638.6,2638.1,7.49375631]
[1729236928571,3.78988,2638.6,2638.1,3.70316631]
[1729236928754,3.79005,2638.5,2637.9,9.10041969]
[1729236928925,3.78992,2638.6,2638.0,3.79061]
[1729236929724,3.79003,2638.5,2638.0,3.79061]
[1729236929922,3.79025,2638.4,2637.9,5.30960969]
[1729236930819,3.79025,2638.4,2637.9,1.60644338]
[1729236931024,3.79025,2638.4,2638.0,0.07580568]
[1729236931425,3.79025,2638.4,2637.9,1.60644338]
[1729236931829,3.79025,2638.4,2638.0,0.09537059]
[1729236933137,0.7741,2638.7,2638.0,0.09537059]
[1729236933330,7.95334231,2639.2,2638.0,0.09537059]
[1729236933331,3.7906,2638.1,2638.0,0.09537059]
[1729236934228,5.463696,2638.1,2638.0,0.09537059]
[1729236934423,3.79075,2638.0,2637.9,0.78074338]
[1729236936782,4.62254,2638.1,2637.9,0.78074338]
[1729236936988,4.54709,2638.4,2637.9,0.78074338]
[1729236937280,4.54709,2638.4,2638.0,0.08737059]
[1729236937655,3.79034,2638.3,2638.0,0.08737059]
[1729236937982,0.7569,2638.4,2638.0,0.08737059]
[1729236938275,3.78993,2638.6,2638.0,3.7907]
[1729236938576,8.38389,2638.7,2638.1,0.08741477]
[1729236938786,4.59402,2638.7,2638.1,3.87793477]
[1729236939081,4.59402,2638.7,2638.2,0.07580312]
[1729236939082,4.59395,2638.7,2638.2,0.07580312]
[1729236939281,4.59395,2638.7,2638.2,3.95349619]
[1729236939282,0.8042,2638.7,2638.2,3.95349619]
[1729236939637,0.8042,2638.7,2638.2,0.16306619]
[1729236939845,0.8042,2638.7,2638.2,0.08726307]
[1729236940186,4.59398,2638.7,2638.2,0.08726307]
[1729236940680,3.7899,2638.6,2638.2,0.08726307]
[1729236941039,3.7899,2638.6,2638.0,3.79066]
[1729236941238,3.7899,2638.6,2638.3,0.08719638]
[1729236941475,3.7899,2638.6,2638.0,3.79063]
[1729236941682,3.7899,2638.6,2638.4,0.0871297]
[1729236941881,3.7899,2638.6,2638.0,3.79063]
[1729236942048,3.7899,2638.6,2638.5,0.08706302]
[1729236942244,3.7899,2638.6,2638.0,7.58129]
[1729236942586,3.7899,2638.6,2638.5,0.08706302]
[1729236942888,3.79005,2638.5,2637.9,3.79089]
[1729236943049,3.79021,2638.4,2637.8,4.62373]
[1729236943248,3.79033,2638.3,2637.8,4.62373]
[1729236944278,3.79005,2638.5,2637.9,3.79088]
[1729236944989,3.79018,2638.4,2637.8,4.62373]
[1729236945293,3.79018,2638.4,2637.8,8.41467]
[1729236945472,3.79018,2638.4,2637.9,0.0845684]
[1729236947890,3.79032,2638.3,2637.9,0.0845684]
[1729236949651,3.79053,2638.2,2637.9,0.0845684]
[1729236950288,3.79032,2638.3,2637.9,0.0845684]
[1729236950898,3.79023,2638.4,2637.9,0.0845684]
[1729236951102,7.58072,2638.3,2637.9,0.0845684]
[1729236951394,4.61294,2638.1,2637.9,0.0845684]
[1729236951692,3.79107,2637.8,2637.4,0.8126]
[1729236951907,3.79075,2638.0,2637.4,4.60414]
[1729236952112,3.79075,2638.0,2637.5,3.79145]
[1729236953110,4.61282,2638.1,2637.5,7.58284]
[1729236953278,3.79084,2638.0,2637.5,3.79139]
[1729236954004,0.8222,2638.1,2637.6,3.86712032]
[1729236954166,3.79053,2638.2,2637.7,3.79114]
[1729236954803,3.79032,2638.3,2637.8,3.79102]
[1729236954973,4.58778,2638.4,2637.9,4.59122]
[1729236955647,3.78996,2638.6,2637.9,4.5912]
[1729236955811,3.78996,2638.6,2638.1,3.79058]
[1729236956605,4.61169,2638.8,2638.2,3.86619592]
[1729236956606,3.78974,2638.7,2638.2,3.86619592]
[1729236957776,4.61162,2638.8,2638.3,3.79031]
[1729236958188,3.78949,2638.9,2638.4,0.8147]
[1729236958429,3.78972,2638.8,2638.4,0.8147]
[1729236958773,3.78976,2638.7,2638.4,0.8147]
[1729236958977,7.57963,2638.7,2638.2,3.79046]
[1729236959231,3.78976,2638.7,2638.2,3.79046]
[1729236959801,3.78989,2638.6,2638.1,0.8147]
[1729236959997,3.78976,2638.7,2638.1,4.60527]
[1729236960218,3.79004,2638.5,2638.1,0.8147]
[1729236960385,3.79004,2638.5,2638.2,0.08170303]
[1729236960820,7.58019,2638.5,2638.2,0.08170303]
[1729236961021,3.79004,2638.5,2638.2,0.08170303]
[1729236961530,3.78989,2638.6,2638.2,0.08170303]
[1729236961884,3.79003,2638.5,2638.2,0.08170303]
[1729236962618,3.78992,2638.6,2638.2,0.08170303]
[1729236963220,3.78956,2638.9,2638.3,0.07580558]
[1729236963523,3.7896,2638.8,2638.4,0.08148149]
[1729236963729,7.57963,2638.7,2638.4,0.08148149]
[1729236964089,3.78998,2638.6,2638.1,4.60519]
[1729236964583,3.79019,2638.4,2638.2,0.08161487]
[1729236964785,3.79031,2638.3,2638.2,0.08161487]
[1729236965368,3.79031,2638.3,2637.7,0.7938]
[1729236965369,3.7907,2638.1,2637.7,0.7938]
[1729236965886,0.7576,2638.5,2637.8,3.79093]
[1729236966022,3.79033,2638.3,2637.8,3.79093]
[1729236966660,3.79069,2638.1,2637.7,0.7938]
[1729236968240,3.79041,2638.3,2637.7,0.86961852]
[1729236968657,3.79041,2638.3,2637.8,3.79093]
[1729236969271,3.79049,2638.2,2637.7,0.7938]
[1729236969483,3.79061,2638.1,2637.7,0.7938]
[1729236969832,3.79092,2637.9,2637.5,1.7577934]
[1729236970080,3.79115,2637.8,2637.5,1.7577934]
[1729236970736,3.79132,2637.6,2637.5,1.7577934]
[1729236971941,4.57432,2637.6,2637.5,1.7577934]
[1729236972139,5.41087,2637.6,2637.5,1.7577934]
[1729236972374,5.41087,2637.6,2637.5,0.77953542]
[1729236974535,4.57432,2637.6,2637.5,0.77953542]
[1729236975586,4.57432,2637.6,2637.5,0.85666558]
[1729236976173,3.79119,2637.7,2637.5,0.85666558]
[1729236976400,3.79132,2637.6,2637.5,0.85666558]
[1729236977610,3.79132,2637.6,2637.5,0.07713016]
[1729236977915,4.629011,2637.6,2637.5,0.07713016]
[1729236982232,3.79152,2637.5,2637.0,3.79216]
[1729236982598,3.79162,2637.4,2637.0,3.79216]
[1729236984067,3.79132,2637.6,2637.0,3.79216]
[1729236984191,3.79156,2637.5,2637.0,3.79216]
[1729236984693,3.79132,2637.6,2636.8,4.5775]
[1729236985029,7.58335,2637.4,2636.9,3.79231]
[1729236985192,3.79164,2637.4,2636.9,3.79231]
[1729236986930,3.79164,2637.4,2636.9,3.86814871]
[1729236987231,3.79164,2637.4,2636.9,3.79231]
[1729236988034,3.79147,2637.5,2636.8,4.5775]
[1729236988251,3.79166,2637.4,2636.9,3.79221]
[1729236988808,3.79147,2637.5,2636.8,4.5775]
[1729236989108,3.79176,2637.3,2636.8,8.3699]
[1729236989293,3.79147,2637.5,2636.8,4.5775]
[1729236989531,3.79161,2637.4,2636.9,3.79224]
[1729236990903,3.79161,2637.4,2637.0,0.07780562]
[1729236991275,3.79175,2637.4,2637.0,0.07780562]
[1729236991476,3.79172,2637.4,2637.0,0.07780562]
[1729236991680,3.79177,2637.3,2636.8,4.5775]
[1729236991983,3.79187,2637.3,2637.1,0.07773887]
[1729236992215,3.79187,2637.3,2636.8,4.5775]
[1729236992411,3.79187,2637.3,2637.2,0.07767213]
[1729236992612,3.79187,2637.3,2636.8,4.57747]
[1729236992781,3.79187,2637.3,2637.2,0.07767213]
[1729236993303,4.56777,2637.3,2636.8,0.7851]
[1729236993615,3.7919,2637.2,2636.8,0.7851]
[1729236994608,3.79172,2637.4,2636.8,4.57756]
[1729236994814,3.79175,2637.3,2636.8,0.7851]
[1729236995022,3.79175,2637.3,2636.8,4.57755]
[1729236995621,3.7917,2637.4,2636.8,4.5775]
[1729236995825,3.79176,2637.3,2636.8,8.36982]
[1729236996046,8.39246,2637.5,2636.9,3.79226]
[1729236996185,4.60089,2637.5,2636.8,4.57743]
[1729236996520,3.79182,2637.3,2636.8,4.57743]
[1729236997319,3.79165,2637.4,2636.9,3.79231]
[1729237000823,3.79165,2637.4,2636.8,4.57743]
[1729237001024,3.79165,2637.4,2636.9,3.79233]
[1729237001319,3.79165,2637.4,2636.8,4.57743]
[1729237001530,3.79165,2637.4,2637.0,3.79217]
[1729237001684,3.79165,2637.4,2636.9,3.79231]
[1729237005026,3.79165,2637.4,2636.8,8.3698]
[1729237005437,3.79165,2637.4,2636.9,3.7923]
[1729237005438,7.58336,2637.4,2636.9,3.7923]
[1729237005638,3.79165,2637.4,2636.9,3.86784735]
[1729237006428,3.79165,2637.4,2636.9,0.07554735]
[1729237006645,4.61324,2637.3,2636.9,0.07554735]
[1729237006933,3.79191,2637.2,2636.9,0.07554735]
[1729237008348,3.79206,2637.1,2636.9,0.07554735]
[1729237008506,3.79206,2637.1,2636.7,1.65830394]
[1729237008832,3.79206,2637.1,2637.0,0.0754806]
[1729237008996,4.61328,2637.3,2636.8,1.65830394]
[1729237009199,4.61328,2637.3,2637.0,0.0754806]
[1729237009396,0.8214,2637.3,2636.9,0.07554735]
[1729237009629,3.7919,2637.2,2637.1,0.07541385]
[1729237010138,3.7919,2637.2,2636.8,2.63824758]
[1729237010439,3.7919,2637.2,2637.1,0.07541385]
[1729237010593,3.7919,2637.2,2636.8,0.97994364]
[1729237010795,3.7919,2637.2,2637.1,0.07541385]
[1729237011023,3.7919,2637.2,2636.8,0.98043068]
[1729237011217,3.7919,2637.2,2637.1,0.07541385]
[1729237011419,3.7919,2637.2,2636.8,0.98043068]
[1729237012059,3.7919,2637.2,2636.9,0.07554735]
[1729237012355,3.7919,2637.2,2636.9,1.05597803]
[1729237013313,3.7919,2637.2,2636.9,0.07554735]
[1729237013621,3.7919,2637.2,2636.9,1.05677155]
[1729237014445,3.7919,2637.2,2636.9,0.07554735]
[1729237015229,3.7919,2637.2,2637.0,0.98199769]
[1729237015434,3.7919,2637.2,2636.9,0.07554735]
[1729237015639,3.7919,2637.2,2637.1,0.07302369]
[1729237016151,3.7919,2637.2,2636.9,0.98203708]
[1729237016337,3.7919,2637.2,2637.1,0.07302369]
[1729237016509,3.7919,2637.2,2637.0,0.07309044]
[1729237016716,3.7919,2637.2,2636.9,0.78861731]
[1729237016916,3.7919,2637.2,2637.1,0.07302369]
[1729237017124,3.7919,2637.2,2637.0,0.07309044]
[1729237017345,3.7919,2637.2,2636.9,0.78861731]
[1729237017543,3.7919,2637.2,2637.1,0.07302369]
[1729237017732,3.7919,2637.2,2637.0,0.07309044]
[1729237018064,5.45020394,2637.2,2636.9,0.78861731]
[1729237018358,5.45020394,2637.2,2636.7,6.28302086]
[1729237018359,3.79204,2637.1,2637.0,0.07309044]
[1729237018662,3.79204,2637.1,2636.5,0.78861731]